bitfinex-derivatives/quotes_ETHF0:USTF0_20250212
["timestamp","ask_amount","ask_price","bid_price","bid_amount"]
[1739376065720,0.76761,2605.6,2605.2,0.77347893]
[1739376065923,0.76765,2605.5,2605.2,0.00575893]
[1739376066121,0.76763,2605.6,2605.2,0.77347893]
[1739376066325,3.97538,2605.7,2605.2,0.00575893]
[1739376066617,3.2078,2605.7,2605.2,4.05207944]
[1739376066821,3.2078,2605.7,2605.6,0.76761]
[1739376067021,0.76748,2606.1,2605.7,0.76756]
[1739376067419,1.1299,2606.2,2605.2,7.25987944]
[1739376067614,3.2078,2606.1,2605.7,0.76758]
[1739376067819,3.2078,2606.1,2605.3,1.953]
[1739376068024,3.2078,2606.1,2605.9,0.76751]
[1739376068213,3.2078,2606.1,2605.5,7.25412051]
[1739376068515,3.2078,2606.1,2606.0,0.76749]
[1739376068716,2.5213,2606.7,2606.0,0.76749]
[1739376068717,3.2078,2606.5,2606.0,3.2078]
[1739376068919,3.2078,2606.5,2606.4,0.76738]
[1739376069227,0.76723,2606.9,2606.6,0.76729]
[1739376070021,3.2078,2607.0,2606.5,0.00575893]
[1739376070227,3.2078,2607.0,2606.9,0.76723]
[1739376070529,0.76716,2607.2,2606.9,0.76723]
[1739376070725,0.76715,2607.2,2606.9,0.76721]
[1739376070921,3.7761,2607.3,2606.9,0.76721]
[1739376071122,0.76717,2607.1,2606.9,0.76721]
[1739376071332,0.76716,2607.2,2606.8,0.5525]
[1739376071624,0.76716,2607.2,2606.9,0.76723]
[1739376071821,0.76719,2607.1,2606.8,1.31975]
[1739376072018,0.76719,2607.1,2606.8,0.5525]
[1739376072219,0.76719,2607.1,2606.8,1.31975]
[1739376072420,3.7761,2607.3,2606.5,0.00575893]
[1739376072615,3.7761,2607.3,2606.5,0.77308893]
[1739376072616,0.76728,2606.8,2606.5,0.77308893]
[1739376072820,0.76731,2606.7,2606.5,0.00575893]
[1739376073022,0.76732,2606.6,2606.5,0.00575893]
[1739376073222,3.97512,2606.6,2606.5,0.00575893]
[1739376073526,9.97512,2606.6,2606.5,0.00575893]
[1739376073720,0.76742,2606.3,2605.9,1.1576]
[1739376074028,3.2078,2606.6,2605.9,1.1576]
[1739376074226,0.76745,2606.2,2605.9,1.9251]
[1739376074425,0.76745,2606.2,2606.0,0.76748]
[1739376074625,0.76745,2606.2,2606.0,0.76749]
[1739376074827,0.76745,2606.2,2606.0,0.76748]
[1739376075029,0.00575893,2606.4,2605.9,1.1576]
[1739376075332,3.21355893,2606.4,2605.8,0.00575893]
[1739376075526,3.97527,2606.1,2605.9,0.76751]
[1739376075727,0.76747,2606.1,2605.9,0.76751]
[1739376076528,3.2078,2606.3,2605.8,4.05207944]
[1739376076729,0.00575893,2606.4,2606.3,0.76741]
[1739376077231,3.2078,2607.0,2606.9,0.76723]
[1739376077625,3.2078,2607.0,2606.5,4.04632051]
[1739376078025,3.2078,2607.3,2606.6,3.2078]
[1739376078231,0.76718,2607.1,2606.9,0.76721]
[1739376078528,0.76715,2607.2,2607.0,0.7672]
[1739376078834,3.2078,2607.3,2606.5,5.99732051]
[1739376079020,0.76721,2607.0,2606.5,5.99732051]
[1739376079224,0.76718,2607.1,2606.9,0.76722]
[1739376079431,3.2078,2607.3,2606.9,0.76722]
[1739376079623,0.76721,2607.0,2606.5,5.99732051]
[1739376079833,3.2078,2607.3,2606.9,3.2078]
[1739376080030,0.76702,2607.7,2607.4,0.76706]
[1739376080334,0.76714,2607.2,2606.8,4.04632051]
[1739376080631,0.76714,2607.2,2607.0,0.7672]
[1739376080828,0.76715,2607.2,2607.0,0.76719]
[1739376081032,0.76713,2607.3,2607.1,0.76716]
[1739376081225,0.76711,2607.3,2606.9,0.5716]
[1739376081426,0.76713,2607.3,2607.1,0.76716]
[1739376081625,3.2078,2607.6,2606.9,0.5716]
[1739376081828,3.2078,2607.6,2607.2,0.76714]
[1739376082037,0.7671,2607.4,2607.2,0.76714]
[1739376082341,3.2078,2607.6,2606.9,0.5716]
[1739376082528,0.76712,2607.3,2607.1,0.76715]
[1739376082936,0.76714,2607.2,2607.0,0.7672]
[1739376083232,3.2078,2607.3,2606.7,0.00575893]
[1739376083447,0.76726,2606.8,2606.7,0.00575893]
[1739376083648,0.76726,2606.9,2606.7,0.77304893]
[1739376084049,0.76719,2607.1,2606.7,0.00575893]
[1739376084249,3.094,2607.2,2606.7,0.00575893]
[1739376084849,3.094,2607.2,2606.7,0.77302893]
[1739376085045,3.094,2607.2,2606.7,0.00575893]
[1739376085349,0.76726,2606.8,2606.7,0.00575893]
[1739376085549,3.2078,2607.0,2606.0,3.2078]
[1739376085851,0.76736,2606.5,2606.4,0.76737]
[1739376086047,0.76734,2606.6,2606.0,5.1265]
[1739376086251,0.76734,2606.6,2605.9,5.24652051]
[1739376086252,0.76724,2606.9,2606.4,3.2078]
[1739376086548,0.76722,2607.0,2606.8,0.76724]
[1739376086751,3.97499,2607.1,2606.9,0.76721]
[1739376086950,0.00575893,2606.9,2606.5,6.51796051]
[1739376087145,0.00575893,2606.9,2606.8,4.81358051]
[1739376087546,0.5648,2607.8,2606.8,16.96930099]
[1739376087754,3.2078,2607.9,2607.4,3.2078]
[1739376088050,3.2078,2607.9,2607.4,0.76707]
[1739376088051,0.76704,2607.6,2607.4,0.76707]
[1739376088248,5.12518,2607.9,2607.1,3.7611]
[1739376088753,5.12518,2607.9,2607.3,0.76709]
[1739376088951,0.76708,2607.4,2607.2,0.76712]
[1739376089247,3.2078,2607.4,2606.9,0.76721]
[1739376089547,3.2078,2607.1,2606.8,0.76724]
[1739376089756,3.2078,2607.1,2606.6,1.3738]
[1739376089954,0.76733,2606.6,2606.4,0.77311893]
[1739376090255,0.76735,2606.5,2606.4,0.00575893]
[1739376090551,0.76735,2606.5,2605.8,6.54048051]
[1739376090552,0.5701,2606.5,2605.8,3.2078]
[1739376090752,3.2078,2606.4,2605.8,3.2078]
[1739376091052,0.76742,2606.3,2606.0,0.76747]
[1739376091251,0.76747,2606.1,2605.8,3.2078]
[1739376091450,0.76747,2606.1,2605.9,0.76751]
[1739376091641,0.6059,2606.3,2605.7,0.5927]
[1739376091840,0.76752,2605.9,2605.7,0.5927]
[1739376092044,0.7675,2606.0,2605.7,1.36601893]
[1739376092448,3.2078,2606.1,2605.7,0.59845893]
[1739376092646,0.76753,2605.9,2605.7,0.00575893]
[1739376092847,3.2078,2606.1,2605.7,0.00575893]
[1739376093244,0.76755,2605.8,2605.7,0.00575893]
[1739376093445,3.2078,2606.1,2605.7,0.00575893]
[1739376093645,0.76755,2605.8,2605.7,0.00575893]
[1739376094049,0.76754,2605.9,2605.7,0.00575893]
[1739376094754,3.2078,2606.1,2605.7,0.00575893]
[1739376095452,0.76755,2605.8,2605.7,0.00575893]
[1739376095958,3.2078,2606.1,2605.7,0.00575893]
[1739376096145,0.7675,2606.0,2605.8,0.76754]
[1739376096459,3.2078,2606.1,2606.0,0.76749]
[1739376096955,3.2078,2606.1,2605.9,0.7675]
[1739376097151,3.2078,2606.1,2605.7,0.00575893]
[1739376097349,0.76755,2605.8,2605.7,0.00575893]
[1739376097660,0.76754,2605.9,2605.7,0.77333893]
[1739376098247,3.2078,2606.1,2605.7,0.77333893]
[1739376098248,3.2078,2606.1,2605.7,0.00575893]
[1739376098453,3.97528,2606.1,2605.9,0.7675]
[1739376098656,0.76755,2605.8,2605.7,0.00575893]
[1739376099556,9.97535,2605.8,2605.7,0.00575893]
[1739376099853,9.97535,2605.8,2605.0,3.97557]
[1739376099854,0.76774,2605.2,2605.0,3.97557]
[1739376100252,3.2078,2605.4,2605.0,3.2078]
[1739376100453,0.5918,2605.3,2605.2,0.76773]
[1739376100650,3.2078,2605.7,2605.2,0.76773]
[1739376100845,0.76768,2605.4,2605.2,0.76773]
[1739376101257,0.76765,2605.5,2605.2,0.00575893]
[1739376101461,3.2078,2605.7,2605.2,0.00575893]
[1739376101849,3.2078,2605.7,2605.4,0.76766]
[1739376102158,3.2078,2605.7,2605.2,0.00575893]
[1739376102159,0.76767,2605.4,2605.2,0.00575893]
[1739376102361,0.7677,2605.3,2605.2,0.00575893]
[1739376103063,1.3325,2605.3,2605.2,0.00575893]
[1739376105258,1.3325,2605.3,2605.2,0.77348893]
[1739376105559,1.3325,2605.3,2605.2,0.00575893]
[1739376105858,1.3325,2605.3,2605.2,0.77348893]
[1739376106060,1.3325,2605.3,2605.2,0.00575893]
[1739376107256,3.2078,2605.4,2605.2,0.77348893]
[1739376107465,3.97539,2605.7,2605.6,0.76761]
[1739376107659,3.97539,2605.7,2605.3,0.5762]
[1739376107860,0.76763,2605.6,2605.3,0.5762]
[1739376108054,3.2078,2605.7,2605.6,0.76761]
[1739376108366,1.949,2606.1,2605.9,0.7675]
[1739376108557,0.57275893,2606.3,2605.7,1.91896]
[1739376108753,0.00575893,2606.3,2605.7,1.91896]
[1739376108960,0.00575893,2606.3,2605.7,6.81684396]
[1739376109264,0.00575893,2606.3,2605.9,3.2078]
[1739376109557,0.00575893,2606.3,2606.2,0.76743]
[1739376110562,1.949,2607.0,2606.2,3.2078]
[1739376110759,1.949,2607.0,2606.3,3.2078]
[1739376110957,0.76723,2606.9,2606.6,0.7673]
[1739376111164,0.76727,2606.8,2606.5,0.76733]
[1739376111367,0.76727,2606.8,2606.3,3.2078]
[1739376111368,3.2078,2607.1,2606.3,3.2078]
[1739376111964,0.7673,2606.7,2606.4,0.77311893]
[1739376112159,0.76732,2606.6,2606.4,0.77311893]
[1739376112665,0.76732,2606.6,2606.4,0.77312893]
[1739376112868,0.76726,2606.6,2606.4,0.00575893]
[1739376113064,0.76727,2606.5,2606.4,0.00575893]
[1739376113261,3.97507,2606.5,2606.4,0.00575893]
[1739376115372,0.76726,2606.6,2606.4,0.00575893]
[1739376115665,0.76726,2606.6,2606.4,0.77304893]
[1739376115863,1.95375893,2607.0,2606.4,0.00575893]
[1739376116061,0.76715,2606.9,2606.6,0.76722]
[1739376116258,0.00575893,2607.0,2606.6,7.25176938]
[1739376116454,0.00575893,2607.0,2606.9,4.81111938]
[1739376116870,0.00575893,2607.0,2606.9,8.01891938]
[1739376117360,0.76702,2607.4,2607.1,0.76707]
[1739376117566,0.76704,2607.3,2607.1,0.76707]
[1739376118267,3.2078,2607.4,2606.9,3.2078]
[1739376118560,3.2078,2607.4,2606.7,3.0895]
[1739376118561,0.76716,2606.9,2606.7,1.90969]
[1739376118766,5.12537,2607.4,2606.8,0.76718]
[1739376118964,5.12537,2607.4,2606.7,1.1425]
[1739376119266,5.12537,2607.4,2606.5,3.2078]
[1739376119267,3.2078,2607.1,2606.5,3.2078]
[1739376119569,2.5179,2607.5,2606.4,0.00575893]
[1739376119570,0.76727,2606.5,2606.4,0.00575893]
[1739376120265,0.573,2606.7,2606.4,3.21355893]
[1739376120463,0.76717,2606.9,2606.4,3.21355893]
[1739376120663,1.1769,2607.2,2606.4,3.21355893]
[1739376120866,0.7672,2606.8,2606.4,3.21355893]
[1739376121057,5.12554,2607.1,2606.4,3.98085893]
[1739376121367,0.76715,2607.0,2606.4,3.21355893]
[1739376121562,0.76715,2607.0,2606.8,0.76717]
[1739376121762,0.76715,2607.0,2606.4,3.21355893]
[1739376122171,1.34008,2607.2,2606.7,3.2078]
[1739376122367,3.97481,2607.5,2607.2,0.76705]
[1739376122565,3.97481,2607.5,2607.0,3.2078]
[1739376122766,3.97481,2607.5,2607.3,0.76703]
[1739376123370,0.5716,2608.2,2607.3,3.2078]
[1739376123566,0.5716,2608.2,2607.8,0.76687]
[1739376123567,0.76682,2608.1,2607.8,0.76687]
[1739376123873,0.76682,2608.1,2607.6,3.2078]
[1739376123874,0.76682,2608.1,2607.7,0.5763]
[1739376124075,0.76682,2608.1,2607.7,1.3432]
[1739376124370,3.2078,2608.3,2607.7,0.5763]
[1739376124969,0.76682,2608.1,2607.8,0.76688]
[1739376125565,3.2078,2608.3,2607.7,0.58205893]
[1739376125764,3.2078,2608.3,2607.9,0.76684]
[1739376125765,0.76679,2608.2,2607.9,0.76684]
[1739376125968,3.2078,2608.3,2608.0,0.76683]
[1739376126664,3.2078,2608.3,2607.9,3.2078]
[1739376126860,3.2078,2608.3,2608.2,0.76677]
[1739376127068,3.2078,2608.3,2607.9,3.2078]
[1739376127267,3.2078,2608.3,2608.1,0.76679]
[1739376128368,3.2078,2608.3,2607.9,3.2078]
[1739376128676,3.2078,2608.3,2608.1,0.76678]
[1739376128865,3.2078,2608.7,2607.9,3.2078]
[1739376129064,0.7667,2608.5,2607.9,3.2078]
[1739376129264,3.2078,2608.7,2608.3,0.76673]
[1739376129472,3.2078,2608.7,2607.9,3.2078]
[1739376129776,3.2078,2608.7,2607.8,4.49572349]
[1739376129777,3.2078,2608.7,2608.5,0.76668]
[1739376129965,3.2078,2608.7,2608.4,0.76669]
[1739376130165,3.2078,2608.7,2608.3,0.76673]
[1739376130377,3.2078,2608.7,2608.0,2.5431]
[1739376130564,3.2078,2609.0,2608.5,3.2078]
[1739376130776,1.34898,2609.6,2609.3,0.76643]
[1739376131070,0.76639,2609.5,2609.2,3.97426]
[1739376131269,0.76641,2609.5,2609.1,0.76648]
[1739376131469,0.76642,2609.4,2609.2,0.00575893]
[1739376131974,0.76645,2609.3,2609.2,0.00575893]
[1739376132476,0.76644,2609.4,2609.2,0.00575893]
[1739376132675,0.76645,2609.3,2609.2,0.00575893]
[1739376133379,2.71145,2609.3,2609.2,0.00575893]
[1739376135270,0.76645,2609.3,2609.2,0.00575893]
[1739376135569,8.71045,2609.3,2609.2,0.00575893]
[1739376136269,1.91631,2609.1,2608.4,0.76671]
[1739376136471,0.76668,2608.6,2608.3,1.36462]
[1739376136670,3.2078,2608.8,2608.3,0.5979]
[1739376136879,0.76658,2608.9,2608.3,3.8057]
[1739376137073,0.6057,2609.0,2608.3,3.8057]
[1739376137370,0.77234893,2608.9,2608.7,0.76662]
[1739376138074,0.00575893,2608.9,2608.8,0.76659]
[1739376138574,0.00575893,2608.9,2608.6,3.2078]
[1739376138775,0.7666,2608.8,2608.6,3.97443]
[1739376138975,0.77233893,2608.9,2608.6,3.2078]
[1739376139273,0.77233893,2608.9,2608.8,0.76659]
[1739376139571,0.00575893,2608.9,2608.8,0.76659]
[1739376142277,10.208,2610.8,2608.8,0.76659]
[1739376142278,5.12339,2610.1,2608.8,6.0]
[1739376142481,5.12339,2610.1,2609.4,4.03607937]
[1739376142482,0.5593,2610.0,2609.4,4.03607937]
[1739376142682,0.5593,2610.0,2609.4,4.63987937]
[1739376142980,0.76642,2609.4,2609.3,3.2078]
[1739376143278,1.91583,2609.7,2609.1,0.76648]
[1739376143481,4.03607937,2610.1,2609.1,0.76648]
[1739376143482,9.15869937,2611.1,2609.6,4.03607937]
[1739376143681,9.15869937,2611.1,2610.0,4.03607937]
[1739376143682,3.2078,2610.8,2610.0,4.03607937]
[1739376143881,3.2078,2610.5,2610.1,0.00574768]
[1739376144082,0.76618,2610.3,2610.1,0.00574768]
[1739376144380,1.91555,2610.1,2608.7,4.03607937]
[1739376144579,3.9742,2609.5,2609.0,0.76652]
[1739376144777,0.76643,2609.4,2609.0,0.76652]
[1739376145167,0.5968,2609.4,2608.6,7.24387937]
[1739376145373,3.2078,2609.2,2608.9,0.00574768]
[1739376145568,0.76655,2609.0,2608.9,0.00574768]
[1739376146181,0.76645,2609.3,2608.9,0.77229768]
[1739376146388,1.36322,2609.4,2609.0,0.76654]
[1739376146677,0.00571016,2609.5,2609.2,0.76647]
[1739376146887,0.00571016,2609.5,2609.4,3.97422]
[1739376147279,0.00571016,2609.5,2609.4,0.76642]
[1739376147578,0.00571016,2609.5,2609.1,4.3266]
[1739376147579,0.00571016,2609.5,2609.1,1.1188]
[1739376147787,0.77213016,2609.5,2609.1,0.5616]
[1739376148275,0.00571016,2609.5,2609.1,0.5616]
[1739376148585,0.00571016,2609.5,2609.4,3.97422]
[1739376149182,0.77212016,2609.5,2609.2,0.5593]
[1739376149380,0.00571016,2609.5,2609.1,0.5616]
[1739376149575,0.00571016,2609.5,2608.9,0.00574768]
[1739376149576,0.7665,2609.2,2608.9,0.00574768]
[1739376150084,0.00571016,2609.5,2608.9,0.00574768]
[1739376150282,0.00571016,2609.5,2608.9,4.04182705]
[1739376150479,0.00571016,2609.5,2609.2,4.03607937]
[1739376150480,0.77212016,2609.5,2609.2,4.03607937]
[1739376150979,0.77212016,2609.5,2608.9,4.04182705]
[1739376151176,0.00571016,2609.5,2609.4,0.76642]
[1739376151478,0.00571016,2609.5,2609.0,8.27775346]
[1739376151686,0.00571016,2609.5,2608.9,4.04182705]
[1739376151687,0.00571016,2609.5,2608.9,0.00574768]
[1739376151980,0.7665,2609.2,2608.9,0.00574768]
[1739376152481,0.76647,2609.3,2609.0,0.76652]
[1739376152681,0.00571016,2609.5,2609.0,3.2078]
[1739376152982,0.00571016,2609.5,2609.1,0.76649]
[1739376153183,0.77212016,2609.5,2609.1,0.76649]
[1739376153384,0.77212016,2609.5,2609.2,0.76647]
[1739376153585,0.00571016,2609.5,2609.1,3.2078]
[1739376153780,0.00571016,2609.5,2609.1,3.7794]
[1739376154179,0.00571016,2609.5,2609.4,0.76642]
[1739376154780,0.00571016,2609.5,2609.1,3.7794]
[1739376154977,0.00571016,2609.5,2609.4,0.76642]
[1739376155488,0.00571016,2609.5,2609.4,3.97422]
[1739376155983,0.00571016,2609.5,2609.1,3.9743]
[1739376156180,0.00571016,2609.5,2608.9,4.61472705]
[1739376156181,0.76646,2609.3,2608.9,4.61472705]
[1739376156576,0.00571016,2609.5,2608.9,4.61472705]
[1739376156776,0.76646,2609.3,2609.1,0.7665]
[1739376157084,0.76648,2609.2,2609.0,0.76652]
[1739376157280,0.00571016,2609.5,2608.9,0.57864768]
[1739376157281,3.2078,2609.3,2608.9,0.57864768]
[1739376157486,0.76653,2609.1,2608.9,1.34519768]
[1739376157980,3.2078,2609.3,2608.9,0.57864768]
[1739376158184,0.76654,2609.0,2608.9,0.00574768]
[1739376158582,3.97434,2609.0,2608.9,0.00574768]
[1739376158883,3.97434,2609.0,2606.7,20.078]
[1739376158884,0.76672,2608.4,2608.2,0.76676]
[1739376159079,3.2078,2608.7,2608.1,3.7992]
[1739376159275,3.2078,2608.7,2607.7,4.03607937]
[1739376159276,3.2078,2608.4,2607.7,4.03607937]
[1739376159485,3.2078,2608.4,2607.6,3.7992]
[1739376159790,0.5913,2608.3,2607.7,4.03607937]
[1739376159989,0.76678,2608.2,2607.8,0.76687]
[1739376160688,0.7668,2608.1,2607.8,0.76687]
[1739376161087,1.35806,2608.3,2607.9,0.76684]
[1739376161390,3.97442,2608.7,2608.0,7.24387937]
[1739376161581,3.97442,2608.7,2608.3,7.24387937]
[1739376161781,3.97442,2608.7,2608.3,4.80281937]
[1739376162190,0.5805,2608.8,2608.3,7.24387937]
[1739376162381,3.2078,2609.2,2608.3,7.24387937]
[1739376162382,1.942,2609.0,2608.3,7.24387937]
[1739376162576,1.942,2609.0,2608.4,1.1818]
[1739376162779,0.76659,2608.9,2608.5,0.76667]
[1739376162986,1.942,2609.0,2608.4,1.94848]
[1739376163285,1.942,2609.0,2608.2,0.76675]
[1739376163286,3.2078,2608.9,2608.2,0.76675]
[1739376163488,0.76676,2608.3,2608.0,3.2078]
[1739376164378,0.5625,2608.5,2608.0,3.2078]
[1739376164685,0.76658,2608.9,2608.3,7.24387937]
[1739376164992,1.9161,2609.4,2608.6,7.24387937]
[1739376164993,3.7703,2609.3,2608.6,7.24387937]
[1739376165487,0.76644,2609.4,2609.1,0.76651]
[1739376165687,0.76642,2609.4,2608.9,4.03607937]
[1739376165890,3.2078,2609.4,2608.8,3.2078]
[1739376166088,3.2078,2609.3,2608.7,3.8081]
[1739376166397,0.76654,2609.1,2608.8,0.76658]
[1739376166587,3.2078,2609.3,2608.5,0.5923]
[1739376166783,0.5625,2609.0,2608.5,1.35896]
[1739376166982,0.5625,2609.0,2608.4,3.2078]
[1739376167184,3.8093,2609.4,2608.7,3.2078]
[1739376167381,3.8068,2609.4,2608.7,3.2078]
[1739376167980,0.76646,2609.3,2609.0,0.76653]
[1739376168488,0.76646,2609.3,2608.5,1.91667]
[1739376168489,0.7666,2608.8,2608.5,0.76666]
[1739376168691,0.7666,2608.8,2608.6,0.76665]
[1739376168890,0.7666,2608.8,2608.5,0.76666]
[1739376169295,3.2078,2609.1,2608.3,0.6054]
[1739376169486,0.5872,2609.3,2608.2,0.5602]
[1739376169487,3.2078,2608.9,2608.2,0.5602]
[1739376169796,0.76667,2608.6,2608.3,0.76673]
[1739376170091,0.76672,2608.4,2608.2,1.32696]
[1739376170294,3.2078,2608.6,2608.2,1.32696]
[1739376170487,0.599,2608.8,2608.2,0.5602]
[1739376170891,0.76677,2608.3,2608.0,3.97462]
[1739376171390,0.7667,2608.5,2608.2,0.76675]
[1739376171584,1.941,2608.7,2608.0,7.24387937]
[1739376171787,0.76666,2608.6,2608.0,7.24387937]
[1739376171983,2.70764,2608.7,2608.4,0.76669]
[1739376172191,0.599,2608.8,2608.7,0.76662]
[1739376172395,0.00571016,2609.5,2608.7,3.2078]
[1739376172596,0.00571016,2609.5,2609.4,3.97422]
[1739376173294,0.77210016,2609.5,2609.3,0.76644]
[1739376173494,0.00571016,2609.5,2609.3,0.76644]
[1739376173896,0.00571016,2609.5,2609.2,0.00574768]
[1739376174097,0.00571016,2609.5,2609.4,0.76642]
[1739376174889,0.00571016,2609.5,2609.3,0.76643]
[1739376175096,0.77211016,2609.5,2609.2,0.77220768]
[1739376175298,0.76645,2609.3,2609.2,0.00574768]
[1739376175689,3.97425,2609.3,2609.2,0.00574768]
[1739376176097,0.76659,2608.9,2608.6,0.76665]
[1739376176287,0.7666,2608.8,2608.6,0.76665]
[1739376176492,0.76662,2608.8,2608.5,0.76667]
[1739376176695,3.2078,2609.0,2608.4,0.5532]
[1739376176696,5.12417,2609.0,2608.4,0.5532]
[1739376176895,1.91637,2609.0,2608.2,0.593]
[1739376177204,0.76671,2608.4,2608.3,0.00574768]
[1739376180108,0.578,2608.5,2608.3,0.00574768]
[1739376180698,1.941,2608.6,2608.3,0.00574768]
[1739376180900,2.70767,2608.6,2608.3,0.77246768]
[1739376181099,1.941,2608.6,2608.3,0.00574768]
[1739376181399,2.70767,2608.6,2608.3,0.77247768]
[1739376181590,1.941,2608.6,2608.3,0.00574768]
[1739376181796,0.5839,2609.1,2608.4,3.2078]
[1739376182000,1.35042,2609.1,2608.8,0.76659]
[1739376182200,0.76649,2609.2,2608.8,3.2078]
[1739376182696,0.76651,2609.1,2608.8,3.97438]
[1739376182889,0.76651,2609.2,2608.8,3.2078]
[1739376183094,3.97427,2609.3,2608.8,3.2078]
[1739376183297,0.7665,2609.2,2608.8,3.2078]
[1739376183495,0.7665,2609.2,2608.9,0.76654]
[1739376183695,0.00571016,2609.5,2609.2,0.76647]
[1739376183696,0.77211016,2609.5,2609.2,0.76647]
[1739376184196,0.77210016,2609.5,2609.1,3.2078]
[1739376184400,0.00571016,2609.5,2609.3,0.76643]
[1739376184898,0.00571016,2609.5,2609.1,3.2078]
[1739376185105,0.00571016,2609.5,2609.4,0.76642]
[1739376185599,0.00571016,2609.5,2609.1,3.2078]
[1739376186108,0.00571016,2609.5,2608.9,0.19022978]
[1739376186301,0.00571016,2609.5,2609.3,0.76642]
[1739376186497,0.00571016,2609.5,2608.9,0.19022978]
[1739376186697,0.00571016,2609.5,2608.9,0.76657]
[1739376186698,0.76647,2609.3,2608.9,0.76657]
[1739376187001,0.76644,2609.4,2609.1,0.76649]
[1739376187301,0.00571016,2609.5,2608.9,1.91642]
[1739376187502,0.00571016,2609.5,2608.8,3.2078]
[1739376187709,0.76644,2609.4,2609.1,0.7665]
[1739376187912,0.77211016,2609.5,2609.2,0.76646]
[1739376188104,0.00571016,2609.5,2609.4,0.76642]
[1739376188709,0.00571016,2609.5,2609.2,1.1639]
[1739376189006,0.00571016,2609.5,2609.4,0.76642]
[1739376189311,0.00571016,2609.5,2609.2,1.1639]
[1739376189618,0.00571016,2609.5,2609.4,0.76642]
[1739376191014,0.76643,2609.4,2609.2,1.93037]
[1739376191311,0.77212016,2609.5,2609.3,0.76643]
[1739376191507,0.00571016,2609.5,2609.4,0.76642]
[1739376192114,0.00571016,2609.5,2608.9,3.2078]
[1739376192306,0.76642,2609.4,2609.1,0.76648]
[1739376192509,0.76645,2609.3,2609.1,0.76648]
[1739376192711,0.76644,2609.4,2608.9,3.2078]
[1739376192910,0.76645,2609.3,2609.1,0.76648]
[1739376193107,0.76646,2609.3,2609.1,0.7665]
[1739376193308,0.76652,2609.1,2608.9,3.97436]
[1739376193511,0.76649,2609.2,2609.0,0.76653]
[1739376193717,3.76531016,2609.5,2608.9,3.2078]
[1739376193907,0.55751016,2609.5,2609.1,0.7665]
[1739376194113,0.00571016,2609.5,2608.9,3.2078]
[1739376194314,0.00571016,2609.5,2609.4,0.76642]
[1739376195410,0.00571016,2609.5,2609.0,3.2078]
[1739376195616,3.21351016,2609.5,2609.0,3.2078]
[1739376195812,0.76644,2609.4,2609.2,0.76647]
[1739376196211,3.21351016,2609.5,2609.3,0.76643]
[1739376196212,0.77211016,2609.5,2609.3,0.76643]
[1739376196417,0.00571016,2609.5,2609.4,0.76642]
[1739376197016,0.00571016,2609.5,2609.4,3.97422]
[1739376197517,3.97405,2610.0,2609.8,0.76629]
[1739376198016,3.97405,2610.0,2609.5,0.5721]
[1739376198017,3.97405,2610.0,2609.7,0.76632]
[1739376198611,3.2078,2610.0,2609.7,0.76632]
[1739376198814,3.97406,2610.0,2609.7,0.76632]
[1739376199119,0.76627,2609.9,2609.6,0.77207768]
[1739376199315,3.2078,2610.0,2609.6,0.77207768]
[1739376199316,0.76631,2609.8,2609.6,0.77209768]
[1739376199921,0.00574768,2610.1,2609.6,0.00574768]
[1739376200311,0.00574768,2610.1,2609.7,3.2078]
[1739376200513,0.76626,2610.0,2609.7,3.97411]
[1739376200720,0.00574768,2610.1,2609.7,3.2078]
[1739376201017,0.77198768,2610.1,2609.8,0.76629]
[1739376201521,0.76625,2610.0,2609.8,0.76629]
[1739376203125,0.77197768,2610.1,2609.9,0.76626]
[1739376203525,0.00574768,2610.1,2609.6,0.00574768]
[1739376203722,0.76633,2609.7,2609.6,0.00574768]
[1739376204319,2.70433,2609.7,2609.6,0.00574768]
[1739376204916,2.70433,2609.7,2608.4,1.34589]
[1739376204917,0.76663,2608.7,2608.4,1.34589]
[1739376205121,0.76663,2608.7,2608.3,3.2078]
[1739376205122,0.76665,2608.6,2608.3,3.97453]
[1739376205323,0.76665,2608.6,2608.3,3.2078]
[1739376206426,0.7667,2608.5,2608.3,3.2078]
[1739376206627,0.76671,2608.4,2608.3,3.2078]
[1739376207028,0.76669,2608.5,2608.3,3.2078]
[1739376207227,1.12124768,2608.7,2608.2,0.00574768]
[1739376207425,0.76668,2608.5,2608.2,0.00574768]
[1739376207621,1.12124768,2608.7,2608.2,0.00574768]
[1739376207816,0.76674,2608.3,2608.2,0.00574768]
[1739376208225,0.76674,2608.3,2607.3,1.938]
[1739376208226,0.76691,2607.8,2607.2,4.03459393]
[1739376208524,0.76693,2607.7,2607.1,3.97488]
[1739376208723,0.76693,2607.7,2607.2,0.76707]
[1739376208927,0.76693,2607.7,2607.1,3.2078]
[1739376209140,1.938,2607.8,2607.1,3.2078]
[1739376209520,3.2078,2607.7,2607.1,3.21354768]
[1739376209733,1.938,2607.8,2607.4,0.767]
[1739376209929,0.5771,2607.9,2607.2,4.03459393]
[1739376210233,3.2078,2608.0,2607.6,0.76695]
[1739376210629,3.2078,2608.0,2607.5,4.03459393]
[1739376210934,3.2078,2608.0,2607.2,1.939]
[1739376210935,0.5771,2608.4,2607.8,7.24239393]
[1739376211131,0.76666,2608.6,2608.1,0.76678]
[1739376211434,5.91818768,2608.7,2608.2,0.76676]
[1739376212630,5.91818768,2608.7,2607.9,0.5919]
[1739376212631,5.15154768,2608.7,2607.9,0.5919]
[1739376212929,3.2078,2608.4,2607.6,0.76694]
[1739376213129,0.76682,2608.1,2607.7,0.76691]
[1739376213727,3.2078,2608.1,2607.4,0.76699]
[1739376213929,0.76692,2607.7,2607.3,0.76702]
[1739376214836,3.2078,2607.8,2607.4,0.76698]
[1739376215137,3.2078,2607.8,2607.2,3.2078]
[1739376215438,0.76697,2607.6,2607.1,0.77281768]
[1739376215639,0.76698,2607.5,2607.1,0.77281768]